[Event "Titled Tuesday Blitz October 25 Late 2022"]
[White "Velikanov, Alexander"]
[Black "Hambleton, Aman"]
[WhiteFideId "2039290"]
[BlackFideId "2606577"]
[WhiteElo "2259"]
[BlackElo "2538"]
[Result "1-0"]
[Round "06"]
[TimeControl "180+1"]
[Date "2022.10.26"]
[WhiteClock "0:00:20"]
[BlackClock "0:00:03"]

1. g3 {[%clk 0:03:00]}  d5 {[%clk 0:02:59]} 2. Bg2 {[%clk 0:03:00]}  c6 {[%clk 0:02:59]} 3. f4 {[%clk 0:02:59]}  Nh6 {[%clk 0:02:54]} 4. d3 {[%clk 0:02:58]}  g6 {[%clk 0:02:46]} 5. Nf3 {[%clk 0:02:52]}  Bg7 {[%clk 0:02:45]} 6. O-O {[%clk 0:02:51]}  d4 {[%clk 0:02:20]} 7. c3 {[%clk 0:02:43]}  c5 {[%clk 0:02:17]} 8. e4 {[%clk 0:02:37]}  dxe3 {[%clk 0:01:33]} 9. Bxe3 {[%clk 0:02:34]}  Nd7 {[%clk 0:01:34]} 10. Ne5 {[%clk 0:01:54]}  Nf5 {[%clk 0:01:13]} 11. Qe2 {[%clk 0:01:36]}  Nxe3 {[%clk 0:00:56]} 12. Qxe3 {[%clk 0:01:37]}  O-O {[%clk 0:00:35]} 13. Nxd7 {[%clk 0:01:29]}  Qxd7 {[%clk 0:00:35]} 14. Na3 {[%clk 0:01:27]}  Qc7 {[%clk 0:00:26]} 15. Nc4 {[%clk 0:01:15]}  Rb8 {[%clk 0:00:19]} 16. a4 {[%clk 0:01:14]}  b6 {[%clk 0:00:18]} 17. a5 {[%clk 0:01:12]}  b5 {[%clk 0:00:15]} 18. Ne5 {[%clk 0:01:12]}  Bb7 {[%clk 0:00:08]} 19. Bxb7 {[%clk 0:00:45]}  Rxb7 {[%clk 0:00:09]} 20. Qe4 {[%clk 0:00:32]}  a6 {[%clk 0:00:06]} 21. Nc6 {[%clk 0:00:23]}  e6 {[%clk 0:00:06]} 22. d4 {[%clk 0:00:22]}  Rc8 {[%clk 0:00:04]} 23. Ne5 {[%clk 0:00:17]}  cxd4 {[%clk 0:00:04]} 24. cxd4 {[%clk 0:00:18]}  Qb8 {[%clk 0:00:04]} 25. Rac1 {[%clk 0:00:18]}  Rbc7 {[%clk 0:00:04]} 26. Nc6 {[%clk 0:00:11]}  Qa8 {[%clk 0:00:02]} 27. d5 {[%clk 0:00:08]}  exd5 {[%clk 0:00:03]} 28. Ne7+ {[%clk 0:00:08]}  Rxe7 {[%clk 0:00:03]} 29. Qxe7 {[%clk 0:00:06]}  Bxb2 {[%clk 0:00:03]} 30. Rc7 {[%clk 0:00:03]}  Rxc7 {[%clk 0:00:02]} 31. Qxc7 {[%clk 0:00:03]}  Bd4+ {[%clk 0:00:02]} 32. Kg2 {[%clk 0:00:04]}  Be3 {[%clk 0:00:02]} 33. Kh3 {[%clk 0:00:03]}  d4 {[%clk 0:00:02]} 34. f5 {[%clk 0:00:04]}  Qe4 {[%clk 0:00:02]} 35. fxg6 {[%clk 0:00:03]}  Qe6+ {[%clk 0:00:01]} 36. g4 {[%clk 0:00:03]}  Qxg6 {[%clk 0:00:02]} 37. Qc8+ {[%clk 0:00:03]}  Kg7 {[%clk 0:00:02]} 38. Qf5 {[%clk 0:00:04]}  Qh6+ {[%clk 0:00:02]} 39. Kg3 {[%clk 0:00:03]}  Qd6+ {[%clk 0:00:02]} 40. Kg2 {[%clk 0:00:02]}  Qe7 {[%clk 0:00:02]} 41. Rf3 {[%clk 0:00:02]}  h6 {[%clk 0:00:02]} 42. Qd3 {[%clk 0:00:02]}  Qe6 {[%clk 0:00:02]} 43. h3 {[%clk 0:00:03]}  Qd5 {[%clk 0:00:02]} 44. Qf5 {[%clk 0:00:02]}  Qa2+ {[%clk 0:00:02]} 45. Kg3 {[%clk 0:00:02]}  Qe6 {[%clk 0:00:02]} 46. h4 {[%clk 0:00:03]}  Qd6+ {[%clk 0:00:02]} 47. Kg2 {[%clk 0:00:03]}  Qe7 {[%clk 0:00:02]} 48. g5 {[%clk 0:00:03]}  hxg5 {[%clk 0:00:03]} 49. hxg5 {[%clk 0:00:04]}  Qxg5+ {[%clk 0:00:03]} 50. Qxg5+ {[%clk 0:00:04]}  Bxg5 {[%clk 0:00:04]} 51. Rf5 {[%clk 0:00:05]}  Kg6 {[%clk 0:00:03]} 52. Rd5 {[%clk 0:00:06]}  f6 {[%clk 0:00:02]} 53. Rxd4 {[%clk 0:00:06]}  Bc1 {[%clk 0:00:01]} 54. Rd6 {[%clk 0:00:06]}  b4 {[%clk 0:00:02]} 55. Rxa6 {[%clk 0:00:07]}  b3 {[%clk 0:00:02]} 56. Rb6 {[%clk 0:00:08]}  Be3 {[%clk 0:00:02]} 57. Rxb3 {[%clk 0:00:08]}  Bd4 {[%clk 0:00:02]} 58. a6 {[%clk 0:00:08]}  Kf5 {[%clk 0:00:02]} 59. Rb7 {[%clk 0:00:09]}  Kg4 {[%clk 0:00:02]} 60. a7 {[%clk 0:00:10]}  Bxa7 {[%clk 0:00:02]} 61. Rxa7 {[%clk 0:00:11]}  f5 {[%clk 0:00:03]} 62. Ra4+ {[%clk 0:00:12]}  Kg5 {[%clk 0:00:02]} 63. Kf2 {[%clk 0:00:13]}  Kh5 {[%clk 0:00:02]} 64. Kf3 {[%clk 0:00:14]}  Kg5 {[%clk 0:00:03]} 65. Ra5 {[%clk 0:00:14]}  Kg6 {[%clk 0:00:03]} 66. Kf4 {[%clk 0:00:14]}  Kh5 {[%clk 0:00:03]} 67. Rxf5+ {[%clk 0:00:15]}  Kg6 {[%clk 0:00:04]} 68. Rg5+ {[%clk 0:00:15]}  Kf6 {[%clk 0:00:04]} 69. Kg4 {[%clk 0:00:15]}  Ke6 {[%clk 0:00:04]} 70. Rf5 {[%clk 0:00:15]}  Kd6 {[%clk 0:00:04]} 71. Kf4 {[%clk 0:00:16]}  Ke6 {[%clk 0:00:04]} 72. Ke4 {[%clk 0:00:16]}  Kd6 {[%clk 0:00:05]} 73. Re5 {[%clk 0:00:17]}  Kc6 {[%clk 0:00:05]} 74. Rd5 {[%clk 0:00:17]}  Kb6 {[%clk 0:00:03]} 75. Kd4 {[%clk 0:00:18]}  Kc6 {[%clk 0:00:04]} 76. Kc4 {[%clk 0:00:18]}  Kb6 {[%clk 0:00:04]} 77. Rc5 {[%clk 0:00:19]}  Kb7 {[%clk 0:00:04]} 78. Kb5 {[%clk 0:00:19]}  Ka8 {[%clk 0:00:03]} 79. Kb6 {[%clk 0:00:19]}  Kb8 {[%clk 0:00:03]} 80. Rc4 {[%clk 0:00:19]}  Ka8 {[%clk 0:00:03]} 81. Rc8# {[%clk 0:00:20]} 1-0


[Site "https://www.chess.com"]

[Event "Titled Tuesday Blitz October 25 Late 2022"]
[White "Yeletsky, Ivan"]
[Black "Averjanov, Alexey"]
[WhiteFideId "24180327"]
[BlackFideId "14109867"]
[WhiteElo "2391"]
[BlackElo "2680"]
[Result "1-0"]
[Round "06"]
[TimeControl "180+1"]
[Date "2022.10.26"]
[WhiteClock "0:00:13"]
[BlackClock "0:00:04"]

1. c4 {[%clk 0:03:00]}  c5 {[%clk 0:02:59]} 2. Nf3 {[%clk 0:02:59]}  Nc6 {[%clk 0:02:58]} 3. d4 {[%clk 0:02:58]}  cxd4 {[%clk 0:02:58]} 4. Nxd4 {[%clk 0:02:59]}  Nf6 {[%clk 0:02:58]} 5. g3 {[%clk 0:02:59]}  g6 {[%clk 0:02:58]} 6. Bg2 {[%clk 0:02:59]}  Bg7 {[%clk 0:02:58]} 7. O-O {[%clk 0:03:00]}  Nxd4 {[%clk 0:02:58]} 8. Qxd4 {[%clk 0:02:59]}  d6 {[%clk 0:02:59]} 9. Nc3 {[%clk 0:02:59]}  O-O {[%clk 0:02:59]} 10. b3 {[%clk 0:02:49]}  Ne4 {[%clk 0:02:48]} 11. Qxe4 {[%clk 0:02:49]}  Bxc3 {[%clk 0:02:48]} 12. Bh6 {[%clk 0:02:49]}  Bg7 {[%clk 0:02:48]} 13. Bxg7 {[%clk 0:02:49]}  Kxg7 {[%clk 0:02:49]} 14. Rfd1 {[%clk 0:02:43]}  Qc7 {[%clk 0:02:48]} 15. Rac1 {[%clk 0:02:39]}  Kg8 {[%clk 0:02:45]} 16. b4 {[%clk 0:02:25]}  Bf5 {[%clk 0:02:43]} 17. Qd4 {[%clk 0:02:17]}  Rfd8 {[%clk 0:02:36]} 18. h4 {[%clk 0:02:00]}  h5 {[%clk 0:02:35]} 19. b5 {[%clk 0:01:45]}  Qb6 {[%clk 0:02:21]} 20. a4 {[%clk 0:01:40]}  Qxd4 {[%clk 0:02:02]} 21. Rxd4 {[%clk 0:01:41]}  Rab8 {[%clk 0:01:56]} 22. c5 {[%clk 0:01:31]}  Rdc8 {[%clk 0:01:42]} 23. c6 {[%clk 0:01:24]}  bxc6 {[%clk 0:01:36]} 24. Rxc6 {[%clk 0:01:14]}  Bd7 {[%clk 0:01:29]} 25. Ra6 {[%clk 0:01:09]}  Rc7 {[%clk 0:01:28]} 26. Bf3 {[%clk 0:01:04]}  Rb6 {[%clk 0:01:26]} 27. Ra5 {[%clk 0:00:57]}  Kf8 {[%clk 0:01:20]} 28. Kg2 {[%clk 0:00:56]}  Ke8 {[%clk 0:01:19]} 29. Bd5 {[%clk 0:00:49]}  e6 {[%clk 0:01:09]} 30. Rc4 {[%clk 0:00:46]}  Rxc4 {[%clk 0:00:55]} 31. Bxc4 {[%clk 0:00:47]}  Rb7 {[%clk 0:00:55]} 32. Ra6 {[%clk 0:00:43]}  d5 {[%clk 0:00:50]} 33. Bd3 {[%clk 0:00:43]}  Kd8 {[%clk 0:00:49]} 34. e4 {[%clk 0:00:42]}  dxe4 {[%clk 0:00:45]} 35. Bxe4 {[%clk 0:00:43]}  Rc7 {[%clk 0:00:45]} 36. Kf3 {[%clk 0:00:36]}  Ke7 {[%clk 0:00:39]} 37. Ke3 {[%clk 0:00:35]}  Bc8 {[%clk 0:00:38]} 38. Rc6 {[%clk 0:00:27]}  Rxc6 {[%clk 0:00:38]} 39. Bxc6 {[%clk 0:00:28]}  Kd6 {[%clk 0:00:38]} 40. a5 {[%clk 0:00:23]}  Kc5 {[%clk 0:00:24]} 41. Be8 {[%clk 0:00:22]}  e5 {[%clk 0:00:21]} 42. Ke4 {[%clk 0:00:15]}  f6 {[%clk 0:00:18]} 43. Bxg6 {[%clk 0:00:09]}  Kxb5 {[%clk 0:00:17]} 44. Bxh5 {[%clk 0:00:10]}  Kxa5 {[%clk 0:00:14]} 45. Be8 {[%clk 0:00:10]}  Kb6 {[%clk 0:00:09]} 46. h5 {[%clk 0:00:10]}  Be6 {[%clk 0:00:05]} 47. h6 {[%clk 0:00:11]}  Bg8 {[%clk 0:00:05]} 48. Kf5 {[%clk 0:00:12]}  Bh7+ {[%clk 0:00:04]} 49. Kxf6 {[%clk 0:00:13]}  a5 {[%clk 0:00:05]} 50. Kxe5 {[%clk 0:00:12]}  Kc5 {[%clk 0:00:05]} 51. Kf6 {[%clk 0:00:12]}  Kb4 {[%clk 0:00:05]} 52. g4 {[%clk 0:00:12]}  Bd3 {[%clk 0:00:02]} 53. g5 {[%clk 0:00:12]}  a4 {[%clk 0:00:02]} 54. Bxa4 {[%clk 0:00:11]}  Kxa4 {[%clk 0:00:03]} 55. g6 {[%clk 0:00:12]}  Bxg6 {[%clk 0:00:04]} 56. Kxg6 {[%clk 0:00:13]} 1-0


[Site "https://www.chess.com"]

[Event "Titled Tuesday Blitz October 25 Late 2022"]
[White "Yoo, Christopher Woojin"]
[Black "Martinez Alcantara, Jose Eduardo"]
[WhiteFideId "30909694"]
[BlackFideId "3805662"]
[WhiteElo "2463"]
[BlackElo "2703"]
[Result "0-1"]
[Round "06"]
[TimeControl "180+1"]
[Date "2022.10.26"]
[WhiteClock "0:00:01"]
[BlackClock "0:00:05"]

1. d4 {[%clk 0:03:00]}  Nf6 {[%clk 0:02:59]} 2. c3 {[%clk 0:03:01]}  e6 {[%clk 0:02:59]} 3. Nf3 {[%clk 0:03:01]}  b6 {[%clk 0:03:00]} 4. Bf4 {[%clk 0:03:02]}  Bb7 {[%clk 0:03:01]} 5. Nbd2 {[%clk 0:03:02]}  Be7 {[%clk 0:03:01]} 6. e3 {[%clk 0:03:02]}  O-O {[%clk 0:03:01]} 7. Bd3 {[%clk 0:03:03]}  c5 {[%clk 0:03:02]} 8. O-O {[%clk 0:03:03]}  cxd4 {[%clk 0:03:03]} 9. cxd4 {[%clk 0:03:02]}  d6 {[%clk 0:03:03]} 10. Qe2 {[%clk 0:03:01]}  a6 {[%clk 0:03:03]} 11. e4 {[%clk 0:02:57]}  Nc6 {[%clk 0:03:03]} 12. Rac1 {[%clk 0:02:56]}  b5 {[%clk 0:03:00]} 13. Rfd1 {[%clk 0:02:56]}  Rc8 {[%clk 0:02:59]} 14. e5 {[%clk 0:02:53]}  dxe5 {[%clk 0:02:55]} 15. dxe5 {[%clk 0:02:52]}  Nd5 {[%clk 0:02:56]} 16. Bg3 {[%clk 0:02:52]}  Qa5 {[%clk 0:02:41]} 17. a3 {[%clk 0:02:46]}  Qb6 {[%clk 0:02:36]} 18. Ne4 {[%clk 0:02:35]}  Rcd8 {[%clk 0:02:22]} 19. Nfg5 {[%clk 0:01:58]}  h6 {[%clk 0:02:18]} 20. Qh5 {[%clk 0:01:47]}  Nd4 {[%clk 0:02:12]} 21. Nf3 {[%clk 0:01:22]}  Nf5 {[%clk 0:02:03]} 22. Qg4 {[%clk 0:01:11]}  Kh8 {[%clk 0:01:52]} 23. Nh4 {[%clk 0:00:54]}  Nxg3 {[%clk 0:01:29]} 24. Qxg3 {[%clk 0:00:50]}  Bxh4 {[%clk 0:01:07]} 25. Qxh4 {[%clk 0:00:49]}  Ne3 {[%clk 0:01:08]} 26. fxe3 {[%clk 0:00:38]}  Qxe3+ {[%clk 0:01:09]} 27. Qf2 {[%clk 0:00:38]}  Rxd3 {[%clk 0:01:09]} 28. Nc5 {[%clk 0:00:38]}  Rxd1+ {[%clk 0:01:01]} 29. Rxd1 {[%clk 0:00:39]}  Qxf2+ {[%clk 0:00:42]} 30. Kxf2 {[%clk 0:00:40]}  Bd5 {[%clk 0:00:41]} 31. Nxa6 {[%clk 0:00:39]}  Rc8 {[%clk 0:00:37]} 32. Nb4 {[%clk 0:00:39]}  Be4 {[%clk 0:00:37]} 33. Rd4 {[%clk 0:00:36]}  Bf5 {[%clk 0:00:32]} 34. g4 {[%clk 0:00:35]}  Bg6 {[%clk 0:00:32]} 35. h4 {[%clk 0:00:32]}  h5 {[%clk 0:00:32]} 36. gxh5 {[%clk 0:00:31]}  Bxh5 {[%clk 0:00:33]} 37. Ke3 {[%clk 0:00:27]}  Kh7 {[%clk 0:00:30]} 38. Nd3 {[%clk 0:00:18]}  Bg6 {[%clk 0:00:30]} 39. Rb4 {[%clk 0:00:07]}  Bxd3 {[%clk 0:00:09]} 40. Kxd3 {[%clk 0:00:07]}  Rc5 {[%clk 0:00:10]} 41. Kd4 {[%clk 0:00:08]}  Rd5+ {[%clk 0:00:10]} 42. Ke4 {[%clk 0:00:08]}  f6 {[%clk 0:00:10]} 43. exf6 {[%clk 0:00:09]}  gxf6 {[%clk 0:00:11]} 44. a4 {[%clk 0:00:10]}  bxa4 {[%clk 0:00:11]} 45. Rxa4 {[%clk 0:00:11]}  Kg6 {[%clk 0:00:11]} 46. Rc4 {[%clk 0:00:08]}  Rh5 {[%clk 0:00:10]} 47. Kf3 {[%clk 0:00:08]}  Rb5 {[%clk 0:00:07]} 48. b4 {[%clk 0:00:08]}  e5 {[%clk 0:00:07]} 49. Ke3 {[%clk 0:00:05]}  Kf5 {[%clk 0:00:08]} 50. Kd3 {[%clk 0:00:04]}  Rb8 {[%clk 0:00:08]} 51. Kc3 {[%clk 0:00:03]}  e4 {[%clk 0:00:09]} 52. h5 {[%clk 0:00:03]}  Rd8 {[%clk 0:00:08]} 53. b5 {[%clk 0:00:02]}  e3 {[%clk 0:00:08]} 54. Rc7 {[%clk 0:00:01]}  Ke6 {[%clk 0:00:05]} 0-1


[Site "https://www.chess.com"]

[Event "Titled Tuesday Blitz October 25 Late 2022"]
[White "Yurovskykh, Oleksandr"]
[Black "Mikhalsky, Vladimir"]
[WhiteFideId "14134020"]
[BlackFideId "14144352"]
[WhiteElo "2303"]
[BlackElo "2271"]
[Result "1-0"]
[Round "06"]
[TimeControl "180+1"]
[Date "2022.10.26"]
[WhiteClock "0:00:06"]
[BlackClock "0:00:01"]

1. d4 {[%clk 0:03:00]}  Nf6 {[%clk 0:02:57]} 2. Nf3 {[%clk 0:02:59]}  g6 {[%clk 0:02:57]} 3. Bg5 {[%clk 0:02:56]}  Bg7 {[%clk 0:02:57]} 4. Nbd2 {[%clk 0:02:57]}  O-O {[%clk 0:02:56]} 5. c3 {[%clk 0:02:57]}  d6 {[%clk 0:02:56]} 6. e4 {[%clk 0:02:56]}  h6 {[%clk 0:02:54]} 7. Bh4 {[%clk 0:02:55]}  c5 {[%clk 0:02:46]} 8. d5 {[%clk 0:02:48]}  b5 {[%clk 0:02:40]} 9. Bxb5 {[%clk 0:02:42]}  Qb6 {[%clk 0:02:40]} 10. Qb3 {[%clk 0:02:32]}  g5 {[%clk 0:02:34]} 11. Bg3 {[%clk 0:02:15]}  Nh5 {[%clk 0:02:33]} 12. Bd3 {[%clk 0:02:08]}  Qc7 {[%clk 0:02:25]} 13. Nc4 {[%clk 0:01:59]}  Nd7 {[%clk 0:02:22]} 14. O-O {[%clk 0:01:57]}  Rb8 {[%clk 0:02:20]} 15. Qc2 {[%clk 0:01:55]}  Nxg3 {[%clk 0:02:17]} 16. hxg3 {[%clk 0:01:54]}  Ba6 {[%clk 0:02:15]} 17. Nfd2 {[%clk 0:01:53]}  Nb6 {[%clk 0:01:56]} 18. Rab1 {[%clk 0:01:47]}  Nxc4 {[%clk 0:01:54]} 19. Bxc4 {[%clk 0:01:45]}  Bc8 {[%clk 0:01:46]} 20. Rfe1 {[%clk 0:01:36]}  Qa5 {[%clk 0:01:45]} 21. a3 {[%clk 0:01:25]}  Bd7 {[%clk 0:01:44]} 22. Bd3 {[%clk 0:01:14]}  Ba4 {[%clk 0:01:40]} 23. Qc1 {[%clk 0:01:13]}  Bb3 {[%clk 0:01:38]} 24. Nxb3 {[%clk 0:01:08]}  Rxb3 {[%clk 0:01:37]} 25. Bc4 {[%clk 0:00:55]}  Rb7 {[%clk 0:01:35]} 26. Qc2 {[%clk 0:00:34]}  Rfb8 {[%clk 0:01:27]} 27. a4 {[%clk 0:00:27]}  Be5 {[%clk 0:01:08]} 28. Rec1 {[%clk 0:00:27]}  Kg7 {[%clk 0:01:03]} 29. b3 {[%clk 0:00:26]}  Bf6 {[%clk 0:00:54]} 30. f4 {[%clk 0:00:25]}  Rh8 {[%clk 0:00:43]} 31. Qd3 {[%clk 0:00:21]}  Qc7 {[%clk 0:00:42]} 32. Re1 {[%clk 0:00:20]}  h5 {[%clk 0:00:40]} 33. Re2 {[%clk 0:00:20]}  h4 {[%clk 0:00:40]} 34. Rbe1 {[%clk 0:00:18]}  Kf8 {[%clk 0:00:31]} 35. e5 {[%clk 0:00:18]}  Bg7 {[%clk 0:00:27]} 36. e6 {[%clk 0:00:17]}  hxg3 {[%clk 0:00:23]} 37. Qf5 {[%clk 0:00:16]}  Bf6 {[%clk 0:00:23]} 38. fxg5 {[%clk 0:00:13]}  Rh5 {[%clk 0:00:15]} 39. exf7 {[%clk 0:00:09]}  Rxg5 {[%clk 0:00:15]} 40. Qh7 {[%clk 0:00:07]}  Rg7 {[%clk 0:00:14]} 41. Qh5 {[%clk 0:00:06]}  Rxf7 {[%clk 0:00:13]} 42. Re3 {[%clk 0:00:06]}  Rg7 {[%clk 0:00:13]} 43. Rf3 {[%clk 0:00:06]}  Qd8 {[%clk 0:00:13]} 44. Re4 {[%clk 0:00:05]}  Kg8 {[%clk 0:00:13]} 45. Rg4 {[%clk 0:00:05]}  Qf8 {[%clk 0:00:12]} 46. Rfxg3 {[%clk 0:00:04]}  Be5 {[%clk 0:00:10]} 47. Rxg7+ {[%clk 0:00:03]}  Bxg7 {[%clk 0:00:10]} 48. Bd3 {[%clk 0:00:04]}  Qf6 {[%clk 0:00:10]} 49. Bh7+ {[%clk 0:00:04]}  Kf8 {[%clk 0:00:10]} 50. Rf3 {[%clk 0:00:04]}  Rxb3 {[%clk 0:00:09]} 51. Rxf6+ {[%clk 0:00:04]}  Bxf6 {[%clk 0:00:10]} 52. Bf5 {[%clk 0:00:05]}  Rxc3 {[%clk 0:00:08]} 53. Be6 {[%clk 0:00:06]}  Rc1+ {[%clk 0:00:08]} 54. Kf2 {[%clk 0:00:06]}  Bd4+ {[%clk 0:00:08]} 55. Ke2 {[%clk 0:00:06]}  Rc2+ {[%clk 0:00:08]} 56. Kd3 {[%clk 0:00:07]}  Rf2 {[%clk 0:00:08]} 57. Qh6+ {[%clk 0:00:07]}  Bg7 {[%clk 0:00:06]} 58. Qh3 {[%clk 0:00:07]}  Rf4 {[%clk 0:00:06]} 59. Qg3 {[%clk 0:00:06]}  Rf6 {[%clk 0:00:04]} 60. Qg4 {[%clk 0:00:06]}  Rf2 {[%clk 0:00:04]} 61. Kc4 {[%clk 0:00:06]}  Rc2+ {[%clk 0:00:03]} 62. Kb5 {[%clk 0:00:06]}  Rb2+ {[%clk 0:00:04]} 63. Kc6 {[%clk 0:00:07]}  c4 {[%clk 0:00:03]} 64. Qf4+ {[%clk 0:00:06]}  Bf6 {[%clk 0:00:03]} 65. Qh6+ {[%clk 0:00:06]}  Bg7 {[%clk 0:00:03]} 66. Qh7 {[%clk 0:00:06]}  Rb6+ {[%clk 0:00:01]} 67. Kc7 {[%clk 0:00:06]} 1-0


[Site "https://www.chess.com"]

[Event "Titled Tuesday Blitz October 25 Late 2022"]
[White "Aldokhin, Ivan"]
[Black "Gritsenko, Nikolai"]
[WhiteFideId "24115720"]
[BlackFideId "14112493"]
[WhiteElo "2313"]
[BlackElo "2389"]
[Result "1-0"]
[Round "07"]
[TimeControl "180+1"]
[Date "2022.10.26"]
[WhiteClock "0:00:44"]
[BlackClock "0:01:15"]

1. e4 {[%clk 0:02:52]}  c5 {[%clk 0:02:56]} 2. Nf3 {[%clk 0:02:52]}  Nf6 {[%clk 0:02:57]} 3. d4 {[%clk 0:02:53]}  Nxe4 {[%clk 0:02:55]} 4. d5 {[%clk 0:02:50]}  d6 {[%clk 0:02:53]} 5. Bd3 {[%clk 0:02:48]}  Nf6 {[%clk 0:02:52]} 6. h3 {[%clk 0:02:42]}  g6 {[%clk 0:02:52]} 7. O-O {[%clk 0:02:39]}  Bg7 {[%clk 0:02:52]} 8. Bg5 {[%clk 0:02:34]}  O-O {[%clk 0:02:51]} 9. Nc3 {[%clk 0:02:25]}  a6 {[%clk 0:02:50]} 10. a4 {[%clk 0:02:25]}  Nbd7 {[%clk 0:02:49]} 11. Re1 {[%clk 0:02:21]}  Re8 {[%clk 0:02:48]} 12. Qd2 {[%clk 0:02:20]}  Nf8 {[%clk 0:02:45]} 13. Bh6 {[%clk 0:02:00]}  Bh8 {[%clk 0:02:44]} 14. Re2 {[%clk 0:01:47]}  Bd7 {[%clk 0:02:42]} 15. a5 {[%clk 0:01:39]}  Rb8 {[%clk 0:02:40]} 16. Bg5 {[%clk 0:01:26]}  Rc8 {[%clk 0:02:31]} 17. Bc4 {[%clk 0:01:23]}  Rb8 {[%clk 0:02:13]} 18. b3 {[%clk 0:01:19]}  Bf5 {[%clk 0:02:01]} 19. Nh4 {[%clk 0:01:07]}  Ne4 {[%clk 0:01:31]} 20. Nxe4 {[%clk 0:01:05]}  Bxa1 {[%clk 0:01:29]} 21. Nxf5 {[%clk 0:00:59]}  gxf5 {[%clk 0:01:29]} 22. Ng3 {[%clk 0:00:58]}  Ng6 {[%clk 0:01:25]} 23. Nxf5 {[%clk 0:00:54]}  Bf6 {[%clk 0:01:24]} 24. Bxf6 {[%clk 0:00:45]}  exf6 {[%clk 0:01:15]} 25. Qh6 {[%clk 0:00:44]} 1-0


[Site "https://www.chess.com"]

[Event "Titled Tuesday Blitz October 25 Late 2022"]
[White "Ali Abdullahi, Farah"]
[Black "Szente Varga, Fruzsina"]
[WhiteFideId "16100212"]
[BlackFideId "712264"]
[WhiteElo "2228"]
[BlackElo "1994"]
[Result "1-0"]
[Round "07"]
[TimeControl "180+1"]
[Date "2022.10.26"]
[WhiteClock "0:00:36"]
[BlackClock "0:00:05"]

1. b3 {[%clk 0:02:58]}  Nf6 {[%clk 0:02:59]} 2. Bb2 {[%clk 0:02:59]}  g6 {[%clk 0:02:59]} 3. e3 {[%clk 0:02:59]}  Bg7 {[%clk 0:02:59]} 4. Nf3 {[%clk 0:02:59]}  O-O {[%clk 0:02:59]} 5. d4 {[%clk 0:03:00]}  d5 {[%clk 0:02:58]} 6. Be2 {[%clk 0:02:58]}  c6 {[%clk 0:02:52]} 7. O-O {[%clk 0:02:58]}  Bg4 {[%clk 0:02:47]} 8. c4 {[%clk 0:02:57]}  Bxf3 {[%clk 0:02:45]} 9. Bxf3 {[%clk 0:02:57]}  e6 {[%clk 0:02:38]} 10. Nd2 {[%clk 0:02:57]}  Nbd7 {[%clk 0:02:32]} 11. Qc2 {[%clk 0:02:57]}  Rc8 {[%clk 0:02:13]} 12. e4 {[%clk 0:02:56]}  dxe4 {[%clk 0:02:12]} 13. Nxe4 {[%clk 0:02:57]}  Nxe4 {[%clk 0:02:12]} 14. Qxe4 {[%clk 0:02:57]}  Nf6 {[%clk 0:02:07]} 15. Qe3 {[%clk 0:02:54]}  h5 {[%clk 0:01:27]} 16. h3 {[%clk 0:02:45]}  Kh7 {[%clk 0:01:24]} 17. Rad1 {[%clk 0:02:35]}  Bh6 {[%clk 0:01:22]} 18. Qe2 {[%clk 0:02:26]}  Bg7 {[%clk 0:01:16]} 19. Rfe1 {[%clk 0:02:25]}  Qa5 {[%clk 0:01:16]} 20. Ba1 {[%clk 0:02:20]}  b5 {[%clk 0:00:55]} 21. Qc2 {[%clk 0:02:16]}  bxc4 {[%clk 0:00:50]} 22. bxc4 {[%clk 0:02:15]}  c5 {[%clk 0:00:51]} 23. d5 {[%clk 0:02:11]}  exd5 {[%clk 0:00:48]} 24. cxd5 {[%clk 0:02:12]}  Kg8 {[%clk 0:00:45]} 25. Bc3 {[%clk 0:02:02]}  Qa6 {[%clk 0:00:42]} 26. Qb2 {[%clk 0:02:01]}  Rb8 {[%clk 0:00:37]} 27. Qa1 {[%clk 0:02:00]}  Rfe8 {[%clk 0:00:29]} 28. d6 {[%clk 0:01:58]}  Rxe1+ {[%clk 0:00:28]} 29. Rxe1 {[%clk 0:01:58]}  Qxd6 {[%clk 0:00:25]} 30. Be5 {[%clk 0:01:58]}  Qb6 {[%clk 0:00:25]} 31. Bxb8 {[%clk 0:01:57]}  Qxb8 {[%clk 0:00:26]} 32. Qe5 {[%clk 0:01:57]}  Qb4 {[%clk 0:00:24]} 33. Rc1 {[%clk 0:01:50]}  c4 {[%clk 0:00:23]} 34. Qc3 {[%clk 0:01:45]}  Qa4 {[%clk 0:00:22]} 35. Qxc4 {[%clk 0:01:44]}  Qa5 {[%clk 0:00:22]} 36. a4 {[%clk 0:01:41]}  Qd2 {[%clk 0:00:18]} 37. Qc2 {[%clk 0:01:38]}  Qd4 {[%clk 0:00:18]} 38. Qc4 {[%clk 0:01:36]}  Qd2 {[%clk 0:00:17]} 39. Rd1 {[%clk 0:01:35]}  Qa5 {[%clk 0:00:17]} 40. Qb5 {[%clk 0:01:35]}  Qc3 {[%clk 0:00:17]} 41. Qb8+ {[%clk 0:01:34]}  Kh7 {[%clk 0:00:17]} 42. Qxa7 {[%clk 0:01:34]}  Qc2 {[%clk 0:00:13]} 43. Qe3 {[%clk 0:01:26]}  Qxa4 {[%clk 0:00:12]} 44. Qd3 {[%clk 0:01:25]}  Qa5 {[%clk 0:00:10]} 45. Qb1 {[%clk 0:01:23]}  Qe5 {[%clk 0:00:10]} 46. Qa1 {[%clk 0:01:23]}  Qf5 {[%clk 0:00:10]} 47. Qa2 {[%clk 0:01:22]}  Qf4 {[%clk 0:00:10]} 48. Qxf7 {[%clk 0:01:21]}  Qe5 {[%clk 0:00:09]} 49. Qa2 {[%clk 0:01:09]}  Qf4 {[%clk 0:00:09]} 50. Qd2 {[%clk 0:01:07]}  Qe5 {[%clk 0:00:09]} 51. Qd6 {[%clk 0:01:06]}  Qf5 {[%clk 0:00:09]} 52. Qd8 {[%clk 0:01:04]}  Qf4 {[%clk 0:00:09]} 53. Rb1 {[%clk 0:00:56]}  Qf5 {[%clk 0:00:08]} 54. Rb7 {[%clk 0:00:52]}  g5 {[%clk 0:00:08]} 55. Qc7 {[%clk 0:00:47]}  Qg6 {[%clk 0:00:08]} 56. Qf7 {[%clk 0:00:42]}  Qxf7 {[%clk 0:00:06]} 57. Rxf7 {[%clk 0:00:43]}  Kg6 {[%clk 0:00:07]} 58. Ra7 {[%clk 0:00:43]}  g4 {[%clk 0:00:07]} 59. hxg4 {[%clk 0:00:43]}  hxg4 {[%clk 0:00:08]} 60. Be2 {[%clk 0:00:43]}  Bh6 {[%clk 0:00:08]} 61. Ra6 {[%clk 0:00:43]}  Bg5 {[%clk 0:00:07]} 62. Bxg4 {[%clk 0:00:43]}  Kf7 {[%clk 0:00:07]} 63. Bf5 {[%clk 0:00:43]}  Ke7 {[%clk 0:00:07]} 64. Re6+ {[%clk 0:00:42]}  Kf7 {[%clk 0:00:07]} 65. g3 {[%clk 0:00:42]}  Kg7 {[%clk 0:00:04]} 66. f4 {[%clk 0:00:42]}  Bh6 {[%clk 0:00:05]} 67. Kg2 {[%clk 0:00:38]}  Nh5 {[%clk 0:00:05]} 68. Rg6+ {[%clk 0:00:36]} 1-0


[Site "https://www.chess.com"]